Cogmind - Beta 15 @@@ ROGUE MODE // 2025.10.15 @ 20:06:14 Player: Malady Result: Destroyed by G-34 Mercenary with Small Laser Performance ------------- Evolutions (1) 500 Regions Visited (3) 600 Robots Destroyed (18) 90 Value Destroyed (149) 149 Prototype IDs (0) 0 Alien Tech Used (0) 0 Bonus (0) 0 TOTAL SCORE: 1339 Bonus ------- None Cogmind --------- Core Integrity 0/400 Matter 300/300 Energy 100/100 System Corruption 15% Temperature Cool (6) Movement Core (50) Location -9/Materials Parts ------- > --- POWER (1) -------- (None) > --- PROPULSION (2) --- (None) > --- UTILITY (4) ------ (None) > --- WEAPON (2) ------- (None) > --- INVENTORY (5) ---- Ion Engine Small Storage Unit Improved Terrain Scanner Peak State ------------ > --- POWER ------------ Ion Engine > --- PROPULSION ------- Light Treads Light Treads > --- UTILITY ---------- Improved Terrain Scanner Improved Terrain Scanner > --- WEAPON ----------- (None) > --- INVENTORY -------- Ion Engine Small Storage Unit Seismic Detector [Rating: 9] Favorites ----------- Power Ion Engine Engine Ion Engine Propulsion Light Treads Treads Light Treads Flight Unit VTOL Module Utility Improved Terrain Scanner Device Improved Terrain Scanner Storage Medium Matter Pod Weapon Mini Grenade Launcher Launcher Mini Grenade Launcher Build | -11 -10 -10 -9 ------- Run | Yrd Mat Min Mat Slots Evolved 2 | . . . 2 Power . | . . . . Propulsion . | . . . . Utility 2 | . . . 2 Weapon . | . . . . Parts Attached 10 | 8 . . 2 Power 1 | 1 . . . Engine 1 | 1 . . . Core . | . . . . Reactor . | . . . . Propulsion 3 | 2 . . 1 Treads 2 | 2 . . . Leg . | . . . . Wheel . | . . . . Hover . | . . . . Flight 1 | . . . 1 Utility 5 | 5 . . . Device 3 | 3 . . . Storage 2 | 2 . . . Processor . | . . . . Hackware . | . . . . Protection . | . . . . Artifact . | . . . . Weapon 1 | . . . 1 Energy Gun . | . . . . Energy Cannon . | . . . . Ballistic Gun . | . . . . Ballistic Cannon . | . . . . Launcher 1 | . . . 1 Special Weapon . | . . . . Impact Weapon . | . . . . Slashing Weapon . | . . . . Piercing Weapon . | . . . . Special Melee Weapon . | . . . . Unidentified Prototypes . | . . . . Parts Lost 7 | . . 3 4 Power 1 | . . 1 . Propulsion 3 | . . 2 1 Utility 2 | . . . 2 Weapon 1 | . . . 1 Highest Loss Streak 4 | . . 2 4 To Critical Strikes . | . . . . Average Backups 3 | 3 3 3 3 Power . | . 1 1 1 Propulsion . | . . . . Utility 2 | 2 2 2 2 Weapon . | . . . . Tool/Special . | . . . . Unused Backups 1 | . . . 1 Power 1 | . . . 1 Propulsion . | . . . . Utility . | . . . . Weapon . | . . . . Tool/Special . | . . . . Average Slot Usage (%) 55 | . 71 54 26 Engine 8 | . 14 6 . Treads 18 | . 28 19 . Flight 1 | . . . 5 Device 12 | . 14 14 7 Storage 12 | . 14 14 8 Launcher 1 | . . . 5 Peak Build Rating 9 | 9 7 5 6 Average Rating 6 | 6 6 3 3 On Entrance 3 | . 7 5 2 Naked Turns 28 | . . . 28 Heaviest Build 11 | 11 8 8 4 Greatest Support 40 | 40 40 40 4 Greatest Overweight (x) . | . . . . Average Overweight (x) . | . . . . Largest Inventory Capacity 8 | 8 5 5 5 Average Capacity 5 | 5 5 5 5 Most Carried 5 | 4 4 3 5 Average Carried 3 | 3 3 3 3 Final Capacity 5 | 5 5 5 5 Final Carried 4 | 4 3 3 3 Class Distribution -------------------- 100% | Mutant Dominant Class ---------------- Mutant | -10/Materials Mutant | -10/Mines Mutant | -9/Materials Resources | -11 -10 -10 -9 ----------- Run | Yrd Mat Min Mat Matter Collected 237 | 233 4 . . Remotely . | . . . . Salvage Created 70 | 69 . . 1 Parts 27 | 21 4 . 2 Haulers Intercepted . | . . . . Recyclers Shooed . | . . . . Parts Field Recycled . | . . . . Retrieved Matter . | . . . . Parts Self-Destructed . | . . . . Prevented . | . . . . Kills | -11 -10 -10 -9 ------- Run | Yrd Mat Min Mat Combat Hostiles Destroyed 3 | . 3 . . Melee 3 | . 3 . . Classes Destroyed 5 | 3 1 . 1 Worker 4 | 4 . . . Tunneler 9 | 9 . . . Recycler 1 | 1 . . . Operator 1 | . . . 1 Swarmer 3 | . 3 . . Best Kill Streak 2 | 1 2 . 1 Combat Bots Only 2 | . 2 . . Max Kills in Single Turn 1 | 1 1 . 1 Gunslinging . | . . . . Exploded . | . . . . Melee 1 | . 1 . . Uniques/NPCs Destroyed . | . . . . Combat | -11 -10 -10 -9 -------- Run | Yrd Mat Min Mat Hostile Shots Fired 81 | . 30 35 16 Missed 21 | . 6 10 5 Hits 60 | . 24 25 11 Projectile 60 | . 24 25 11 Critical Strikes 1 | . 1 . . Damage Taken 1111 | . 207 348 556 Core 559 | . 68 90 401 Absorbed by Shields . | . . . . Core Remaining (%) 68 | 100 . 36 . Volleys Fired 3 | . . . 3 Largest 1 | . . . 1 Hottest 30 | . . . 30 Shots Fired 3 | . . . 3 Gun . | . . . . Cannon . | . . . . Launcher 3 | . . . 3 Special . | . . . . Kinetic . | . . . . Thermal . | . . . . Explosive 3 | . . . 3 Electromagnetic . | . . . . Robot Hit Streak 1 | . . . 1 Robot Miss Streak . | . . . . Penetration Max . | . . . . Secondary Targets . | . . . . Shots Hit Robots 1 | . . . 1 Core Hits 51 | 42 7 1 1 Critical Kills . | . . . . Critical Parts Destroyed . | . . . . Critical Strikes . | . . . . Melee Attacks . | . . . . Impact . | . . . . Slashing . | . . . . Piercing . | . . . . Sneak Attacks . | . . . . Combat Hostiles . | . . . . Follow-up Attacks . | . . . . Damage Inflicted 283 | 197 22 1 63 Guns . | . . . . Cannons . | . . . . Explosions 63 | . . . 63 Melee . | . . . . Ramming 220 | 197 22 1 . Kinetic . | . . . . Thermal . | . . . . Explosive 63 | . . . 63 Electromagnetic . | . . . . Impact . | . . . . Slashing . | . . . . Piercing . | . . . . Highest Corruption 15 | . . . 15 Average Corruption 14 | . . . 14 Corruption Purged . | . . . . Corruption Blocked . | . . . . Effects 2 | . . . 2 Matter Fused 1 | . . . 1 Energy Discharges 1 | . . . 1 Overload Shots . | . . . . Overflow Damage . | . . . . Projectiles . | . . . . Explosions . | . . . . Melee . | . . . . Knockbacks 1 | 1 . . . Impact 1 | 1 . . . Kinetic . | . . . . Secondary . | . . . . Self-Inflicted Damage 23 | . . . 23 Shots 2 | . . . 2 Rammed 105 | 84 20 1 . Targets Rammed 116 | 92 23 1 . Kicked . | . . . . Crushed 11 | 8 3 . . Highest Temperature . | . . . . Average Temperature . | . . . . Received Heat Transfer 264 | . . 198 66 Siege Activations . | . . . . Martial Activations . | . . . . Shielding Activations . | . . . . Robots Disrupted . | . . . . Combat Hostiles . | . . . . Robots Corrupted . | . . . . Combat Hostiles . | . . . . Parts Fried . | . . . . Impact Corruptions . | . . . . Robots Melted . | . . . . Combat Hostiles . | . . . . Parts Melted . | . . . . Heat Transferred . | . . . . Parts Sabotaged . | . . . . Parts Stolen . | . . . . Parts Stripped . | . . . . Power Chain Reactions . | . . . . Alert | -11 -10 -10 -9 ------- Run | Yrd Mat Min Mat Maximum Alert Level . | . . . . Low Security (%) 100 | 100 100 100 100 Level 1 . | . . . . Level 2 . | . . . . Level 3 . | . . . . Level 4 . | . . . . Level 5 . | . . . . High Security . | . . . . Max Security . | . . . . Peak Influence 64 | 5 50 30 64 Initial 15 | . . 15 . Average 2 | . 6 10 14 Influence Increases 244 | 70 70 30 74 Destroy 0b10 Robot/C 60 | . 60 . . Destroy 0b10 Robot/NC 75 | 70 . . 5 Destroy Leader 10 | . 10 . . Disable Machine 45 | . . . 45 Destroy Structure 24 | . . . 24 Lose Combat Pursuer 30 | . . 30 . Influence Decreases 244 | 70 30 70 74 Entered New Map 25 | . . 25 . Time Decay 169 | 70 30 35 34 Lost Part 50 | . . 10 40 Squads Dispatched 2 | . 1 . 1 Investigation . | . . . . Extermination . | . . . . Reinforcement 2 | . 1 . 1 Assault . | . . . . Garrison . | . . . . Intercept . | . . . . Searches Triggered . | . . . . Construction Impeded . | . . . . Haulers Reinforced . | . . . . Active Scanning Responses . | . . . . Cargo Convoy Interrupts . | . . . . Stealth | -11 -10 -10 -9 --------- Run | Yrd Mat Min Mat Distress Signals 2 | . 2 . . Communications Jammed . | . . . . Distress Signals . | . . . . Times Spotted 11 | . 6 4 1 Peak Tracking Total 4 | . 4 2 1 Tactical Retreats 1 | . . 1 . Traps | -11 -10 -10 -9 ------- Run | Yrd Mat Min Mat Traps Triggered . | . . . . Indirectly . | . . . . Trap Hack Attempts . | . . . . Triggered . | . . . . Disarmed . | . . . . Reprogrammed . | . . . . Reused . | . . . . Traps Extracted . | . . . . Installed . | . . . . Triggered . | . . . . Machines | -11 -10 -10 -9 ---------- Run | Yrd Mat Min Mat Machines Disabled 3 | . . . 3 Max in Single Turn 2 | . . . 2 Machines Repaired . | . . . . Machines Dismantled . | . . . . Machines Sabotaged . | . . . . Overloaded Fab Kills . | . . . . Hacking | -11 -10 -10 -9 --------- Run | Yrd Mat Min Mat Machines Accessed . | . . . . Terminals . | . . . . Fabricators . | . . . . Repair Stations . | . . . . Recycling Units . | . . . . Scanalyzers . | . . . . Garrison Access . | . . . . Total Hacks . | . . . . Successful . | . . . . Failed . | . . . . Catastrophic . | . . . . Database Lockouts . | . . . . Manual . | . . . . Terminals . | . . . . Fabricators . | . . . . Repair Stations . | . . . . Recycling Units . | . . . . Scanalyzers . | . . . . Garrison Access . | . . . . Terminal Hacks . | . . . . Fabricator Hacks . | . . . . Repair Station Hacks . | . . . . Recycling Unit Hacks . | . . . . Scanalyzer . | . . . . Garrison Access Hacks . | . . . . Unauthorized Hacks . | . . . . Terminals . | . . . . Fabricators . | . . . . Repair Stations . | . . . . Recycling Units . | . . . . Scanalyzers . | . . . . Garrison Access . | . . . . Data Cores Recovered . | . . . . Used . | . . . . Hacking Detections . | . . . . Full Trace Events . | . . . . Feedback Events . | . . . . Feedback Blocked . | . . . . Robot Schematics Acquired . | . . . . Robots Built . | . . . . Authchips . | . . . . Time . | . . . . Total Robot Build Rating . | . . . . Part Schematics Acquired . | . . . . Parts Built . | . . . . Authchips . | . . . . Time . | . . . . Total Part Build Rating . | . . . . Parts Repaired . | . . . . Time . | . . . . Parts Recycled . | . . . . Recycled Matter . | . . . . Retrieved Matter . | . . . . Retrieved Components . | . . . . Parts Scanalyzed . | . . . . Part Schematics Acquired . | . . . . Parts Damaged . | . . . . Bothacking | -11 -10 -10 -9 ------------ Run | Yrd Mat Min Mat Used RIF Installer . | . . . . Robots Hacked . | . . . . Non-combat . | . . . . Combat . | . . . . Robot Hacks Applied . | . . . . Relay Couplers Released . | . . . . Fabnet Peak Effective % . | . . . . Robots Rewired . | . . . . Allies Hacked . | . . . . Hacks Repelled . | . . . . Allies | -11 -10 -10 -9 -------- Run | Yrd Mat Min Mat Total Allies . | . . . . Largest Group . | . . . . Highest-Rated Group . | . . . . Highest-Rated Ally . | . . . . Total Orders . | . . . . Ally Attacks . | . . . . Total Damage . | . . . . Kills . | . . . . Allies Corrupted . | . . . . Allies Melted . | . . . . Intel | -11 -10 -10 -9 ------- Run | Yrd Mat Min Mat Active Infowar (turns) 1957 | 1559 212 118 68 Terrain 1716 | 1559 157 . . Seismic 335 | 94 55 118 68 Robot Analysis Total . | . . . . Derelict Logs Recovered . | . . . . Drone Launches . | . . . . Drone Recoveries . | . . . . Exploration | -11 -10 -10 -9 ------------- Run | Yrd Mat Min Mat Turns Passed 2179 | 1743 212 118 106 Spaces Moved 1364 | 989 109 74 192 Core 49 | 6 . 2 41 Treads 1164 | 983 109 72 . Legs . | . . . . Wheels . | . . . . Hover . | . . . . Flight 151 | . . . 151 Fastest Speed 35 | 50 160 50 35 Average Speed 142 | 159 160 157 38 Slowest Speed 160 | 160 160 160 50 Overloaded Moves . | . . . . Propulsion Burnouts . | . . . . Robots Hopped . | . . . . Potential Cave-ins 42 | . . . 42 Cave-ins Triggered 4 | . . . 4 Exploration Rate (%) 24 | 27 22 37 10 Regions Visited 3 Branch Regions 1 Pre-discovered Areas . | . . . . Known Exits Taken . | . . . . Unknown Exits Taken 3 | 1 1 1 . Scrap Searched . | . . . . Spaces Dug . | . . . . Terrain Destroyed 22 | . . . 22 Melee . | . . . . Projectile . | . . . . AOE 22 | . . . 22 Terrain Rammed . | . . . . Walls Destroyed . | . . . . Machines Disabled . | . . . . Actions | -11 -10 -10 -9 --------- Run | Yrd Mat Min Mat Total 1527 | 1099 133 74 221 Wait 23 | 1 . . 22 Move 1357 | 988 108 73 188 Hop . | . . . . Pick Up 11 | 9 . . 2 Fast Attach . | . . . . Attach 7 | 5 . . 2 Detach . | . . . . Swap 5 | 4 1 . . Drop 1 | . 1 . . Fire 3 | . . . 3 Melee . | . . . . Ram . | . . . . Kick . | . . . . Crush 116 | 92 23 1 . Escape Stasis 4 | . . . 4 Rewire . | . . . . Trap . | . . . . Miscellaneous . | . . . . Route ------- -11/Scrapyard -10/Materials -10/Mines (discovered 2 exits: *Mat x2) -9/Materials History --------- Turn | Location | Event 5 | -11/Scrapyard | Discovered new exit (range 13) 1744 | -11/Scrapyard | Entered Materials 1745 | -10/Materials | Build established: Mutant 1921 | -10/Materials | Discovered new exit (range 16) 1956 | -10/Materials | Entered Mines 2028 | -10/Mines | Core integrity fell below 50% 2056 | -10/Mines | Discovered new exit (range 8) 2064 | -10/Mines | Discovered new exit (range 10) 2074 | -10/Mines | Entered Materials 2074 | -9/Materials | Evolved 2 slots: Utility x2 2142 | -9/Materials | Crushed by falling debris 2143 | -9/Materials | System corruption reached 10% 2145 | -9/Materials | Crushed by falling debris 2152 | -9/Materials | Crushed by falling debris 2157 | -9/Materials | Crushed by falling debris 2158 | -9/Materials | Core integrity fell below 50% 2167 | -9/Materials | Core integrity fell below 20% 2180 | -9/Materials | Destroyed by G-34 Mercenary with Small Laser Last Messages --------------- Mni. Grenade Launcher destroyed. System corrupted by crushing effect (+3). Seismic Detector destroyed. System corrupted by crushing effect (+5). K-01 Serf collects debris. The unstable cave ceiling collapses. Crushed by falling debris. K-01 Serf collects debris. System corrupted: Matter fused (-10). K-01 Serf collects debris. The unstable cave ceiling collapses. Crushed by falling debris. Med. Matter Pod destroyed. System corrupted by crushing effect (+2). K-01 Serf collects debris. The unstable cave ceiling collapses. Crushed by falling debris. K-01 Serf collects debris. System corrupted: Energy discharge (-31). K-01 Serf collects debris. Map ----- +----------------------------------------------------+ | ????????????? #????????????????????????????????? | | ????????????? #????????????????????????????????? | | ????????????? #????????????????????????????????? | | ????????????? #????????????????????????????????? | | ????????????? #????????????????????????????????? | | ????????????? #????????????????????????????????? | | ????????##### ##########???????????????????????? | | ????????# ??????????????????????? | | ????????# ??????????????????????? | | ????????# ??????????????????????? | | ??##########+##########??????????????????????????? | | ?##!!!!### #????????????????????????????????? | | ?#! !## "" #????????????????????????????????? | | ?? ## ""S #????????????????????????????????? | | ???# #?# "" #????????????????????????????????? | | ???# ### #????????????????????????????????? | | ???# + #????????????????????????????????? | | ???# ##########????????????????????????????????? | | ???## ##?????????????????????????????????????????? | | ????# #??????????????????????????????????????????? | | ????# #??????????????????????????????????????????? | | ????# #??????????????????????????????????????????? | | ????# #??????????????????????????????????????????? | | ????# ###############+#??????????????????????????? | | ????# #########??????????????????? | | ????################ ###@## ##########??????????? | | ????????????? ?????# # g +??????? | | ########????# "????# # ##########??????????? | | # #????# """??# # #??????????????????? | | " #????# ?# #= #??????????????????? | | #????# [ # # #??????????????????? | | # ]##???# + + " #??????????????????? | | ############ ### #####??????????????????? | | # #?###??????????????????????? | | # #??????????????????????????? | | # " #??????????????????????????? | | # ##+#####????????????????????????? | | # # !! # #????????????????????????? | | # !=% !! # #????????????????????????? | | # * # # "" #????????????????????????? | | # "T" # + "T !#????????????????????????? | | ######## ####### "" #????????????????????????? | | ???????#####?????# #????????????????????????? | | ?????????????????########????????????????????????? | | ?????????????????????????????????????????????????? | | ?????????????????????????????????????????????????? | | ?????????????????????????????????????????????????? | | ?????????????????????????????????????????????????? | | ?????????????????????????????????????????????????? | | ?????????????????????????????????????????????????? | +----------------------------------------------------+ Best States ------------- Heat Dissipation 28 Energy Generation 10 Energy Capacity 250 Matter Stores 400 Matter Capacity 400 Sight Range 16 Terrain Scan Range 16 Terrain Scan Density 10 Evasion (%) 63 Recoil Reduction 2 Item Schematics ----------------- None Robot Schematics ------------------ None Fabricated ------------ Nothing Repaired ---------- Nothing Alien Tech Used ----------------- None Achievements -------------- Unlikely Earthworm Challenges ------------ None Game ------ Seed RecyclingBombardmentEdition Manual? 0 Play Time 00:16:29 Cumulative 3.6 hours Start 2025.10.15 @ 19:51:05 End 2025.10.15 @ 20:06:14 Sessions 1 Manual Loads 0 Difficulty Rogue Special Mode None Game No. 8 Rogue 7 Adventurer 1 Explorer 0 Win Type - Total 0 Types 0/0/0/0/0/0/0/0/0/0 Lore% 2 Gallery% 6 Achievement% 9 Wizard Run 0 Options --------- Layout 1 ASCII 0 Keyboard 0 Movement Numpad Keybinds 0 Fullscreen 1 Font 24/Smallcaps Map View 50x35 Zoom Use 0% Tactical HUD 0 Map Filters NONE Filters NONE Steam 1 RUN: 12b661de-ae2d-4c56-bb33-c4b56ba9fe71